Cogmind - Beta 10.2 @@@ ROGUE MODE // 2021.08.15 @ 16:35:12 Player: djcoinslot Result: Self-destructed Performance ------------- Evolutions (1) 500 Regions Visited (2) 400 Robots Destroyed (25) 125 Value Destroyed (685) 685 Prototype IDs (0) 0 Alien Tech Used (0) 0 Bonus (16) 16 TOTAL SCORE: 1726 Bonus ------- High Alert Combat Kills 16 Cogmind --------- Core Integrity 265/400 Matter 270/300 Energy 114/250 System Corruption 0% Temperature Cool (0) Movement Rolling (90) Location -9/Materials Parts ------- > --- POWER (1) -------- Ion Engine > --- PROPULSION (3) --- Wheel Compact Wheel > --- UTILITY (3) ------ Improved Heat Sink Medium Storage Unit Hacking Suite > --- WEAPON (2) ------- Beam Rifle Heavy Assault Rifle > --- INVENTORY (8) ---- Small Storage Unit High-capacity Matter Pod (186) Heavy EM Pulse Gun Beam Rifle Assault Rifle Peak State ------------ > --- POWER ------------ Ion Engine > --- PROPULSION ------- Wheel Wheel Compact Wheel > --- UTILITY ---------- Small Storage Unit Improved Sensor Array Hacking Suite > --- WEAPON ----------- Heavy EM Pulse Gun Heavy Assault Rifle > --- INVENTORY -------- Ion Engine Improved Heat Sink High-capacity Matter Pod Heavy EM Pulse Gun Assault Rifle [Rating: 14] Favorites ----------- Power Ion Engine Engine Ion Engine Propulsion Wheel Wheel Wheel Utility Small Storage Unit Device Improved Sensor Array Storage Small Storage Unit Hackware Hacking Suite Weapon Assault Rifle Energy Gun Heavy EM Pulse Gun Ballistic Gun Assault Rifle Build | -11 -10 -9 ------- Run | Scr Mat Mat Slots Evolved 2 | . . 2 Power . | . . . Propulsion 1 | . . 1 Utility 1 | . . 1 Weapon . | . . . Parts Attached 26 | 8 7 11 Power 4 | 1 2 1 Engine 4 | 1 2 1 Core . | . . . Reactor . | . . . Propulsion 7 | 3 2 2 Treads . | . . . Leg . | . . . Wheel 7 | 3 2 2 Hover . | . . . Flight . | . . . Utility 6 | 2 . 4 Device 2 | . . 2 Storage 3 | 2 . 1 Processor . | . . . Hackware 1 | . . 1 Protection . | . . . Artifact . | . . . Weapon 9 | 2 3 4 Energy Gun 6 | . 3 3 Energy Cannon . | . . . Ballistic Gun 3 | 2 . 1 Ballistic Cannon . | . . . Launcher . | . . . Special Weapon . | . . . Impact Weapon . | . . . Slashing Weapon . | . . . Piercing Weapon . | . . . Special Melee Weapon . | . . . Unidentified Prototypes . | . . . Parts Lost 5 | . . 5 Power 1 | . . 1 Propulsion 2 | . . 2 Utility . | . . . Weapon 2 | . . 2 Highest Loss Streak 2 | . . 2 Average Slot Usage (%) 95 | . 100 90 Engine 12 | . 14 10 Wheel 27 | . 28 26 Device 5 | . . 10 Storage 22 | . 28 17 Hackware 2 | . . 4 Energy Gun 11 | . 13 8 Ballistic Gun 13 | . 14 12 Naked Turns . | . . . Heaviest Build 20 | 14 18 20 Greatest Support 36 | 26 20 36 Greatest Overweight (x) . | . . . Average Overweight (x) . | . . . Largest Inventory Capacity 8 | 8 8 8 Average Capacity 7 | 7 8 7 Most Carried 8 | 8 8 8 Average Carried 6 | 4 7 6 Final Capacity 8 | 8 8 8 Final Carried 8 | 8 8 5 Class Distribution -------------------- 52% | Scavenger-Mutant 47% | Mutant Dominant Class ---------------- Scavenger-Mutant | -10/Materials Scavenger-Mutant | -9/Materials Resources | -11 -10 -9 ----------- Run | Scr Mat Mat Matter Collected 901 | 360 243 298 Remotely . | . . . Salvage Created 931 | 168 336 427 Parts 61 | 15 23 23 Haulers Intercepted . | . . . Recyclers Shooed 1 | 1 . . Parts Field Recycled . | . . . Retrieved Matter . | . . . Parts Self-Destructed . | . . . Prevented . | . . . Kills | -11 -10 -9 ------- Run | Scr Mat Mat Combat Hostiles Destroyed 15 | . 7 8 Guns 15 | . 7 8 Classes Destroyed 7 | 3 2 2 Worker 2 | 1 . 1 Tunneler 5 | 5 . . Recycler 1 | 1 . . Operator 1 | . 1 . Watcher 1 | . . 1 Grunt 11 | . 7 4 Sentry 4 | . . 4 Best Kill Streak 4 | 4 3 3 Combat Bots Only 3 | . 3 3 Max Kills in Single Turn 1 | 1 1 1 Gunslinging . | . . . Exploded . | . . . Melee . | . . . Uniques/NPCs Destroyed . | . . . Combat | -11 -10 -9 -------- Run | Scr Mat Mat Damage Taken 936 | . 299 637 Core 173 | . 38 135 Absorbed by Shields . | . . . Core Remaining (%) 92 | 100 84 . Volleys Fired 78 | 23 23 32 Largest 2 | 2 2 2 Hottest 79 | 40 76 79 Shots Fired 147 | 42 46 59 Gun 147 | 42 46 59 Cannon . | . . . Launcher . | . . . Special . | . . . Kinetic 101 | 42 23 36 Thermal 16 | . 11 5 Explosive . | . . . Electromagnetic 30 | . 12 18 Robot Hit Streak 19 | 6 11 19 Robot Miss Streak 6 | 3 6 4 Penetration Max . | . . . Secondary Targets 3 | . 1 2 Max Gunslinging Chain 1 | . 1 1 Shots Hit Robots 98 | 26 27 45 Core Hits 39 | 11 13 15 Critical Hits . | . . . Critical Kills . | . . . Critical Parts Destroyed . | . . . Melee Attacks . | . . . Impact . | . . . Slashing . | . . . Piercing . | . . . Sneak Attacks . | . . . Combat Hostiles . | . . . Follow-up Attacks . | . . . Damage Inflicted 1308 | 260 411 637 Guns 1270 | 260 405 605 Cannons . | . . . Explosions 32 | . . 32 Melee . | . . . Ramming 6 | . 6 . Kinetic 676 | 260 111 305 Thermal 207 | . 131 76 Explosive . | . . . Electromagnetic 419 | . 163 256 Impact . | . . . Slashing . | . . . Piercing . | . . . Highest Corruption . | . . . Average Corruption . | . . . Corruption Purged . | . . . Overload Shots . | . . . Overflow Damage . | . . . Projectiles . | . . . Explosions . | . . . Melee . | . . . Knockbacks . | . . . Impact . | . . . Kinetic . | . . . Secondary . | . . . Self-Inflicted Damage 40 | . 3 37 Shots 1 | . . 1 Rammed 1 | . 1 . Targets Rammed 1 | . 1 . Kicked . | . . . Crushed . | . . . Highest Temperature 135 | . 135 64 Average Temperature 29 | . 37 17 Received Heat Transfer 423 | . 168 255 Siege Activations . | . . . Robots Corrupted 1 | . . 1 Combat Hostiles . | . . . Parts Fried 3 | . . 3 Impact Corruptions . | . . . Robots Melted . | . . . Combat Hostiles . | . . . Parts Melted 2 | . 1 1 Heat Transferred 444 | . 333 111 Parts Sabotaged . | . . . Parts Stolen . | . . . Parts Stripped . | . . . Power Chain Reactions 1 | . . 1 Missiles Intercepted . | . . . Alert | -11 -10 -9 ------- Run | Scr Mat Mat Peak Influence 428 | 35 286 428 Initial 120 | . 22 120 Average 156 | 16 129 271 Maximum Alert Level 2 | . 1 2 Low Security (%) 57 | 100 70 17 Level 1 38 | . 29 73 Level 2 3 | . . 8 Level 3 . | . . . Level 4 . | . . . Level 5 . | . . . High Security . | . . . Max Security . | . . . Squads Dispatched 6 | . 2 4 Investigation 2 | . 1 1 Extermination . | . . . Reinforcement 4 | . 1 3 Assault . | . . . Garrison . | . . . Intercept . | . . . Construction Impeded . | . . . Haulers Reinforced . | . . . Stealth | -11 -10 -9 --------- Run | Scr Mat Mat Distress Signals 4 | . . 4 Communications Jammed . | . . . Distress Signals . | . . . Times Spotted 33 | . 8 25 Peak Tracking Total 10 | . 2 10 Tactical Retreats 2 | . 1 1 Traps | -11 -10 -9 ------- Run | Scr Mat Mat Traps Triggered . | . . . Indirectly . | . . . Trap Hack Attempts . | . . . Triggered . | . . . Disarmed . | . . . Reprogrammed . | . . . Reused . | . . . Traps Extracted . | . . . Installed . | . . . Triggered 2 | . . 2 Machines | -11 -10 -9 ---------- Run | Scr Mat Mat Machines Disabled 3 | . 1 2 Max in Single Turn 1 | . 1 1 Machines Sabotaged . | . . . Garrisons Compromised . | . . . Overloaded Fab Kills . | . . . Fab Network Shutdowns . | . . . Hacking | -11 -10 -9 --------- Run | Scr Mat Mat Machines Accessed 8 | . 4 4 Terminals 7 | . 3 4 Fabricators . | . . . Repair Stations . | . . . Recycling Units 1 | . 1 . Scanalyzers . | . . . Garrison Access . | . . . Total Hacks 30 | . 17 13 Successful 22 | . 13 9 Failed 8 | . 4 4 Catastrophic . | . . . Database Lockouts . | . . . Manual 27 | . 15 12 Terminals 24 | . 11 13 Fabricators . | . . . Repair Stations . | . . . Recycling Units 6 | . 6 . Scanalyzers . | . . . Garrison Access . | . . . Terminal Hacks 2 | . 1 1 Robot Analysis 1 | . 1 . Alert Level 1 | . . 1 Fabricator Hacks . | . . . Repair Station Hacks . | . . . Recycling Unit Hacks 1 | . 1 . Report Inventory 1 | . 1 . Scanalyzer . | . . . Garrison Access Hacks . | . . . Unauthorized Hacks 19 | . 11 8 Terminals 15 | . 7 8 Track 3 | . 2 1 Assimilate 4 | . 2 2 Botnet 7 | . 3 4 Operators 1 | . . 1 Fabricators . | . . . Repair Stations . | . . . Recycling Units 4 | . 4 . Monitor 1 | . 1 . Reject 1 | . 1 . Recyclers 1 | . 1 . Mask 1 | . 1 . Scanalyzers . | . . . Garrison Access . | . . . Data Cores Recovered . | . . . Used . | . . . Hacking Detections 7 | . 3 4 Full Trace Events 4 | . 3 1 Feedback Events . | . . . Feedback Blocked . | . . . Robot Schematics Acquired . | . . . Robots Built . | . . . Matter . | . . . Time . | . . . Total Robot Build Rating . | . . . Part Schematics Acquired . | . . . Parts Built . | . . . Matter . | . . . Time . | . . . Total Part Build Rating . | . . . Parts Repaired . | . . . Time . | . . . Parts Recycled . | . . . Recycled Matter . | . . . Retrieved Matter . | . . . Retrieved Components . | . . . Parts Scanalyzed . | . . . Part Schematics Acquired . | . . . Parts Damaged . | . . . Bothacking | -11 -10 -9 ------------ Run | Scr Mat Mat Used RIF Installer . | . . . Robots Hacked . | . . . Non-combat . | . . . Combat . | . . . Robot Hacks Applied . | . . . Relay Couplers Released . | . . . Robots Rewired . | . . . Allies Hacked . | . . . Hacks Repelled . | . . . Allies | -11 -10 -9 -------- Run | Scr Mat Mat Total Allies . | . . . Largest Group . | . . . Highest-Rated Group . | . . . Highest-Rated Ally . | . . . Total Orders . | . . . Ally Attacks . | . . . Total Damage . | . . . Kills . | . . . Allies Corrupted . | . . . Allies Melted . | . . . Intel | -11 -10 -9 ------- Run | Scr Mat Mat Robot Analysis Total 1 | . 1 . Derelict Logs Recovered . | . . . Drone Launches . | . . . Drone Recoveries . | . . . Exploration | -11 -10 -9 ------------- Run | Scr Mat Mat Turns Passed 725 | 170 285 270 Spaces Moved 468 | 102 195 171 Core 1 | 1 . . Treads . | . . . Legs . | . . . Wheels 467 | 101 195 171 Hover . | . . . Flight . | . . . Fastest Speed 50 | 50 80 80 Average Speed 83 | 83 80 87 Slowest Speed 100 | 100 80 90 Overloaded Moves . | . . . Propulsion Burnouts . | . . . Robots Hopped . | . . . Cave-ins Triggered . | . . . Exploration Rate (%) 20 | 5 31 25 Regions Visited 2 Branch Regions . Pre-discovered Areas . | . . . Known Exits Taken . | . . . Unknown Exits Taken 2 | 1 1 . Scrap Searched . | . . . Spaces Dug . | . . . Terrain Destroyed 3 | . . 3 Melee . | . . . Projectile . | . . . AOE 3 | . . 3 Terrain Rammed . | . . . Walls Destroyed . | . . . Machines Disabled . | . . . Actions | -11 -10 -9 --------- Run | Scr Mat Mat Total 664 | 146 283 235 Wait 49 | . 37 12 Move 466 | 101 194 171 Hop . | . . . Pick Up 24 | 11 9 4 Fast Attach 8 | 6 1 1 Attach 9 | 1 1 7 Detach 1 | . . 1 Swap 9 | 1 5 3 Drop 19 | 3 12 4 Fire 78 | 23 23 32 Melee . | . . . Ram 1 | . 1 . Kick . | . . . Crush . | . . . Escape Stasis . | . . . Rewire . | . . . Trap . | . . . Miscellaneous . | . . . Route ------- -11/Scrapyard -10/Materials -9/Materials History --------- Turn | Location | Event 16 | -11/Scrapyard | Discovered new exit (range 15) 171 | -11/Scrapyard | Entered Materials 301 | -10/Materials | Build established: Mutant 377 | -10/Materials | Discovered new exit (range 15) 456 | -10/Materials | Entered another Materials area 456 | -9/Materials | Evolved 2 slots: Propulsion x1, Utility x1 726 | -9/Materials | Self-destructed Last Messages --------------- M001. 00677_ O-16 Technician locks terminal. 00682_ Terminal disabled. 00686_ Hvy. EM Pulse Gun destroyed. 00687_ K-01 Serf cleans the Matter Pump. 00690_ Y-45 Defender destroyed. 00692_ K-01 Serf collects debris. 00694_ K-01 Serf cleans the Matter Pump. 00695_ K-01 Serf collects debris. 00697_ Ion Engine destroyed. 00698_ K-01 Serf collects debris. 00702_ Heat Sink melted. 00702_ G-34 Mercenary destroyed. 00702_ Switching to secondary target: G-34 Mercenary. 00702_ K-01 Serf collects debris. 00705_ G-34 Mercenary destroyed. 00706_ K-01 Serf collects debris. 00708_ Acquired 52 matter. 00711_ K-01 Serf collects debris. 00716_ Dropped Imp. Sensor Array. Map ----- +----------------------------------------------------+ | #??????????????????? #??????????????????????? | | #??????????????????# #??????????????????????? | | #??????????????????# #??????????????????????? | | #######????????????# #??????????????????????? | | # ############## #??????????????????????? | | # !! ^^ ##?????????????????????? | | + ^ "#??????????????o??????? | | #### ! """ "#?????????????????????? | | ???# ####### """ "#?????????????????????? | | ???#######???#"" """ T#?????????????????????? | | ?????????????#"T ^ "#?????????????????????? | | ?????????????#"" o / "#?????????????????????? | | ?????????????### % ! "#?????????????????????? | | ???????????????#* ! kk*=!##???###???????????????? | | u ?? =%= "T= !#??? """???????????????? | | ??################ ###?"""""??????????????? | | ???????????????# kg # """"" ?????????????? | | ### ????????????????# g g # """"" #???????????? | | ??????????????????????# gw + """ #???????????? | | ??????????????????????# g # #???????????? | | ??????????????????????# !o # #???????????? | | ??????????????????????## ##? #???????????? | | ???????????????????????# a#?? #???????????? | | ???????????????????????# w #???#######???????????? | | ???????????????????????# #?????????????????????? | | ???????????????????????#k@ #?????????????????????? | | ???????????????????????# #?????????????????????? | | ???????????????????????# #?????????????????????? | | ???????????????????????# r #?????????????????????? | | ???????????????????????# #?????????????????????? | | ???????????????????????# #?????????????????????? | | ???????????????????????+ #?????????????????????? | | ???????????????????????# #?????????????????????? | | ???????????????????????# #?????????????????????? | | ???????????????????????# #?????????????????????? | | ???????????????????????# b#?????????????????????? | | ???????????????????????# a #?????????????????????? | | ???????????????????????# tr#?????????????????????? | | ???????????????????????? g??????????????????????? | | ???????????????????????? k??????????????????????? | | ???????????????????????? ag??????????????????????? | | ?????????????????????????????????????????????????? | | ?????????????????????????????????????????????????? | | ?????????????????????????????????????????????????? | | ?????????????????????????????????????????????????? | | ?????????????????????????????????????????????????? | | ?????????????????????????????????????????????????? | | ?????????????????????????????????????????????????? | | ?????????????????????????????????????????????????? | | ?????????????????????????????????????????????????? | +----------------------------------------------------+ Best States ------------- Heat Dissipation 42 Energy Generation 10 Energy Capacity 250 Matter Stores 300 Matter Capacity 300 Sight Range 16 Robot Scan Range 13 Terrain Scan Density 10 Evasion (%) 44 Offensive Hacking 10 Item Schematics ----------------- None Robot Schematics ------------------ None Fabricated ------------ Nothing Alien Tech Used ----------------- None Achievements -------------- None Challenges ------------ None Game ------ Seed TrapTargetingInverter Manual? 0 Play Time 00:09:21 Cumulative 69.1 hours Start 2021.08.15 @ 16:26:57 End 2021.08.15 @ 16:35:12 Sessions 1 Manual Loads 0 Difficulty Rogue Special Mode None Game No. 62 Rogue 62 Adventurer 0 Explorer 0 Win Type - Total 0 Types 0/0/0/0/0/0/0/0/0 Lore% 32 Gallery% 52 Achievement% 37 Wizard Run 0 Options --------- ASCII 0 Keyboard 1 Movement Arrows Keybinds 1 Fullscreen 1 Font 18/Terminus Map View 76x50 Tactical HUD 1 Map Filters NONE Filters NONE Steam 1 RUN: 167b0279-20a1-4236-890a-f03e7faf9a23